[Event "FIDE CB Open 2022"]
[Site "Ceske Budejovice"]
[Date "2022.07.08"]
[Round "8.8"]
[White "Heimisson, Hilmir Freyr"]
[Black "Valantiejus, Vaidotas"]
[Result "1/2-1/2"]
[ECO "C47"]
[WhiteElo "2281"]
[BlackElo "2062"]
[Annotator "RC"]
[PlyCount "149"]
[EventDate "2022.07.01"]
[EventType "swiss"]
[EventCountry "CZE"]
[SourceTitle "playchess.com"]
[Source "ChessBase"]
[SourceQuality "1"]
[TimeControl "40/5400+30:1800+30"]

1. e4 {[%emt 0:00:06]} e5 {[%emt 0:00:27]} 2. Nf3 {[%emt 0:01:36]} Nc6 {[%emt 0:00:09]} 3. d4 {[%emt 0:02:08]} exd4 {[%emt 0:00:27]} 4. Nxd4 {[%emt 0:00:15]} Nf6 {[%emt 0:00:43]} 5. Nc3 {[%emt 0:07:54]} Bb4 {[%emt 0:01:52]} 6. Nxc6 {[%emt 0:00:11]} bxc6 {[%emt 0:00:09]} 7. Bd3 {[%emt 0:00:26]} d5 {[%emt 0:01:24]} 8. Bd2 {[%emt 0:05:59]} O-O {[%emt 0:02:08]} 9. O-O {[%emt 0:01:41]} Bxc3 {[%emt 0:22:46]} 10. Bxc3 {[%emt 0:00:18]} Nxe4 {[%emt 0:03:05]} 11. Bxe4 {[%emt 0:10:48]} dxe4 {[%emt 0:00:03]} 12. Qxd8 {[%emt 0:02:34]} Rxd8 {[%emt 0:00:02]} 13. Be5 {[%emt 0:00:58]} Ba6 {[%emt 0:04:36]} 14. Rfe1 {[%emt 0:02:43]} Rd2 {[%emt 0:02:54]} 15. Rac1 {[%emt 0:01:51]} f5 {[%emt 0:02:39]} 16. Bxc7 {[%emt 0:01:33]} Rc8 {[%emt 0:01:59]} 17. Ba5 {[%emt 0:10:30]} Rd5 {[%emt 0:00:33]} 18. Bc3 {[%emt 0:00:06]} Kf7 {[%emt 0:05:26]} 19. Re3 {[%emt 0:20:00]} Rcd8 {[%emt 0:00:43]} 20. Rce1 {[%emt 0:00:12]} Rd1 {[%emt 0:00:58]} 21. h4 {[%emt 0:02:40]} g6 {[%emt 0:01:13]} 22. Kh2 {[%emt 0:01:47]} Bc4 {[%emt 0:05:22]} 23. a3 {[%emt 0:00:50]} Rxe1 {[%emt 0:01:32]} 24. Rxe1 {[%emt 0:00:32]} Rd7 {[%emt 0:02:44]} 25. Kg3 {[%emt 0:00:21]} Bb5 {[%emt 0:05:02]} 26. Kf4 {[%emt 0:03:44]} h5 {[%emt 0:03:14]} 27. Ke3 {[%emt 0:04:59]} c5 {[%emt 0:01:38]} 28. Ra1 {[%emt 0:02:01]} Ba4 {[%emt 0:02:43]} 29. Rc1 {[%emt 0:00:23]} c4 {[%emt 0:01:33]} 30. Kf4 {[%emt 0:02:45]} Rd5 {[%emt 0:00:44]} 31. Bb4 {[%emt 0:00:58]} Rd7 {[%emt 0:00:18]} 32. Ke5 {[%emt 0:05:08]} a6 {[%emt 0:01:50]} 33. g3 {[%emt 0:01:23]} Bc6 {[%emt 0:12:09]} 34. Bd6 {[%emt 0:01:35]} Rb7 {[%emt 0:00:29]} 35. Bb4 {[%emt 0:00:20]} Rd7 {[%emt 0:01:11]} 36. Bd6 {[%emt 0:06:03]} Rb7 {[%emt 0:00:11]} 37. b4 {[%emt 0:00:45]} cxb3 {[%emt 0:03:18]} 38. cxb3 {[%emt 0:00:02]} Rb5+ {[%emt 0:00:32]} 39. Rc5 {[%emt 0:01:17]} Rxc5+ {[%emt 0:00:59]} 40. Bxc5 {[%emt 0:00:03]} Bb5 {[%emt 0:00:36]} 41. Kd6 {[%emt 0:04:48]} Bd3 {[%emt 0:07:42]} 42. Be3 {[%emt 0:15:55]} Bc2 {[%emt 0:02:20]} 43. b4 {[%emt 0:00:16]} Ba4 {[%emt 0:00:16]} 44. Bg5 {[%emt 0:02:09]} Bb5 {[%emt 0:00:19]} 45. Bf4 {[%emt 0:04:40]} Ba4 {[%emt 0:00:06]} 46. Be3 {[%emt 0:04:39]} Bb5 {[%emt 0:00:04]} 47. Bd2 {[%emt 0:00:32]} Ba4 {[%emt 0:00:06]} 48. Bc3 {[%emt 0:00:38]} Bb5 {[%emt 0:00:04]} 49. Bd4 {[%emt 0:00:03]} Ba4 {[%emt 0:00:04]} 50. Bb6 {[%emt 0:00:05]} Bb5 {[%emt 0:00:08]} 51. Ba5 {[%emt 0:00:18]} Ba4 {[%emt 0:00:25]} 52. Bc7 {[%emt 0:01:25]} Bb5 {[%emt 0:00:04]} 53. Bb8 {[%emt 0:00:12]} Ba4 {[%emt 0:00:07]} 54. Ba7 {[%emt 0:00:35]} Bb5 {[%emt 0:00:04]} 55. Be3 {[%emt 0:00:32]} Ba4 {[%emt 0:00:21]} 56. Bh6 {[%emt 0:01:20]} Bb5 {[%emt 0:00:04]} 57. Bf4 {[%emt 0:00:03]} Ba4 {[%emt 0:00:03]} 58. Kc7 {[%emt 0:00:56]} Ke6 {[%emt 0:00:19]} 59. Kb6 {[%emt 0:00:09]} Bb5 {[%emt 0:00:02]} 60. Ka5 {[%emt 0:01:13]} Kd7 {[%emt 0:00:26]} 61. a4 {[%emt 0:00:07]} Bc4 {[%emt 0:00:27]} 62. Kb6 {[%emt 0:00:24]} Kc8 {[%emt 0:01:08]} 63. Bd6 {[%emt 0:00:58]} Bb3 {[%emt 0:00:57]} 64. b5 {[%emt 0:00:30]} axb5 {[%emt 0:00:38]} 65. a5 {[%emt 0:00:32]} Bd5 {[%emt 0:00:24]} 66. Kc5 {[%emt 0:00:28]} Ba8 {[%emt 0:00:29]} 67. Kxb5 {[%emt 0:00:23]} Kb7 {[%emt 0:01:20]} 68. Kc5 {[%emt 0:00:28]} Ka6 {[%emt 0:00:31]} 69. Bc7 {[%emt 0:00:08]} e3 {[%emt 0:01:48]} 70. fxe3 {[%emt 0:00:06]} Bf3 {[%emt 0:00:10]} 71. Kd4 {[%emt 0:00:10]} Bg4 {[%emt 0:00:06]} 72. Ke5 {[%emt 0:00:12]} Kb5 {[%emt 0:00:07]} 73. Kf6 {[%emt 0:00:10]} Ka6 {[%emt 0:00:05]} 74. Kxg6 {[%emt 0:00:14]} Kb5 {[%emt 0:00:02]} 75. Kg5 {[%emt 0:01:10]} 1/2-1/2

[Event "FIDE CB Open 2022"]
[Site "Ceske Budejovice"]
[Date "2022.07.08"]
[Round "8.9"]
[White "Librelato, Kathie Goulart"]
[Black "Koch-Muller, Oscar"]
[Result "1-0"]
[ECO "C01"]
[WhiteElo "2255"]
[BlackElo "2115"]
[Annotator "RC"]
[PlyCount "45"]
[EventDate "2022.07.01"]
[EventType "swiss"]
[EventCountry "CZE"]
[SourceTitle "playchess.com"]
[Source "ChessBase"]
[SourceQuality "1"]
[TimeControl "40/5400+30:1800+30"]

1. e4 {[%emt 0:00:04]} e6 {[%emt 0:00:03]} 2. d4 {[%emt 0:00:08]} d5 {[%emt 0:00:03]} 3. Bd3 {[%emt 0:00:05]} dxe4 {[%emt 0:00:15]} 4. Bxe4 {[%emt 0:00:05]} Nf6 {[%emt 0:00:05]} 5. Bf3 {[%emt 0:00:07]} c5 {[%emt 0:00:04]} 6. Ne2 {[%emt 0:00:12]} Nc6 {[%emt 0:00:05]} 7. Be3 {[%emt 0:00:08]} cxd4 {[%emt 0:00:13]} 8. Nxd4 {[%emt 0:00:06]} Ne5 {[%emt 0:00:04]} 9. Nc3 {[%emt 0:00:06]} a6 {[%emt 0:02:50]} 10. Qe2 {[%emt 0:00:44]} Nxf3+ {[%emt 0:03:33]} 11. Nxf3 {[%emt 0:00:11]} Bb4 {[%emt 0:10:11]} 12. Bd4 {[%emt 0:01:29]} O-O {[%emt 0:13:40]} 13. O-O-O {[%emt 0:01:12]} Qa5 {[%emt 0:25:59]} 14. Kb1 {[%emt 0:03:21]} Qf5 {[%emt 0:02:10]} 15. g4 {[%emt 0:10:41]} Nxg4 {[%emt 0:05:46]} 16. Rhg1 {[%emt 0:00:08]} e5 {[%emt 0:03:30]} 17. Nxe5 {[%emt 0:11:31]} Nxe5 {[%emt 0:00:14]} 18. Bxe5 {[%emt 0:00:33]} f6 {[%emt 0:04:51]} 19. Bd6 {[%emt 0:02:27]} Bxd6 {[%emt 0:01:32]} 20. Rxd6 {[%emt 0:00:07]} Qe5 {[%emt 0:03:07]} 21. Qc4+ {[%emt 0:00:57]} Kh8 {[%emt 0:00:32]} 22. Qc7 {[%emt 0:13:17]} f5 {[%emt 0:06:09]} 23. f4 {[%emt 0:03:25]} 1-0

[Event "FIDE CB Open 2022"]
[Site "Ceske Budejovice"]
[Date "2022.07.08"]
[Round "8.10"]
[White "Matras, Ondrej"]
[Black "Pirola, Claudionor Alcides L"]
[Result "0-1"]
[ECO "D45"]
[WhiteElo "2229"]
[BlackElo "2100"]
[Annotator "RC"]
[PlyCount "62"]
[EventDate "2022.07.01"]
[EventType "swiss"]
[EventCountry "CZE"]
[SourceTitle "playchess.com"]
[Source "ChessBase"]
[SourceQuality "1"]
[TimeControl "40/5400+30:1800+30"]

1. d4 {[%emt 0:14:57]} d5 {[%emt 0:00:03]} 2. c4 {[%emt 0:00:03]} e6 {[%emt 0:00:06]} 3. Nc3 {[%emt 0:00:35]} c6 {[%emt 0:00:03]} 4. e3 {[%emt 0:03:32]} Nf6 {[%emt 0:00:36]} 5. Nf3 {[%emt 0:00:03]} Nbd7 {[%emt 0:00:30]} 6. b3 {[%emt 0:02:49]} Bd6 {[%emt 0:01:08]} 7. Be2 {[%emt 0:00:36]} O-O {[%emt 0:00:17]} 8. O-O {[%emt 0:00:03]} b6 {[%emt 0:00:13]} 9. Bb2 {[%emt 0:00:59]} Bb7 {[%emt 0:00:23]} 10. Rc1 {[%emt 0:02:05]} Qe7 {[%emt 0:01:45]} 11. Rc2 {[%emt 0:07:15]} Rfe8 {[%emt 0:01:49]} 12. h3 {[%emt 0:04:27]} Rad8 {[%emt 0:03:07]} 13. Qa1 {[%emt 0:02:04]} dxc4 {[%emt 0:08:51]} 14. bxc4 {[%emt 0:02:30]} e5 {[%emt 0:04:37]} 15. Rd1 {[%emt 0:02:27]} e4 {[%emt 0:04:11]} 16. Nd2 {[%emt 0:02:16]} c5 {[%emt 0:09:14]} 17. Nb5 {[%emt 0:01:56]} Bb8 {[%emt 0:07:08]} 18. Nf1 {[%emt 0:07:52]} a6 {[%emt 0:00:47]} 19. Nc3 {[%emt 0:00:49]} cxd4 {[%emt 0:05:23]} 20. Rxd4 {[%emt 0:04:09]} Ne5 {[%emt 0:07:33]} 21. Rcd2 {[%emt 0:01:11]} Rxd4 {[%emt 0:03:15]} 22. Rxd4 {[%emt 0:02:54]} Qe6 {[%emt 0:04:01]} 23. Ng3 {[%emt 0:09:24]} Nf3+ {[%emt 0:09:05]} 24. gxf3 {[%emt 0:00:52]} exf3 {[%emt 0:00:19]} 25. Nd5 {[%emt 0:03:07]} fxe2 {[%emt 0:07:01]} 26. Nxe2 {[%emt 0:09:30]} Qxh3 {[%emt 0:04:27]} 27. Nef4 {[%emt 0:01:43]} Bxf4 {[%emt 0:02:46]} 28. Rxf4 {[%emt 0:03:01]} Nxd5 {[%emt 0:00:37]} 29. cxd5 {[%emt 0:00:35]} Bxd5 {[%emt 0:00:27]} 30. f3 {[%emt 0:00:43]} Qg3+ {[%emt 0:01:28]} 31. Kf1 {[%emt 0:00:16]} Bxf3 {[%emt 0:00:19]} 0-1

[Event "FIDE CB Open 2022"]
[Site "Ceske Budejovice"]
[Date "2022.07.08"]
[Round "8.11"]
[White "Prazak, Daniel"]
[Black "Kula, Dominik"]
[Result "0-1"]
[ECO "B51"]
[WhiteElo "2113"]
[BlackElo "2229"]
[Annotator "RC"]
[PlyCount "76"]
[EventDate "2022.07.01"]
[EventType "swiss"]
[EventCountry "CZE"]
[SourceTitle "playchess.com"]
[Source "ChessBase"]
[SourceQuality "1"]
[TimeControl "40/5400+30:1800+30"]

1. e4 {[%emt 0:00:03]} c5 {[%emt 0:00:07]} 2. Nf3 {[%emt 0:00:35]} d6 {[%emt 0:00:03]} 3. Bb5+ {[%emt 0:00:37]} Nd7 {[%emt 0:00:14]} 4. a4 {[%emt 0:00:51]} Ngf6 {[%emt 0:00:21]} 5. Nc3 {[%emt 0:00:05]} g6 {[%emt 0:01:00]} 6. O-O {[%emt 0:00:30]} Bg7 {[%emt 0:00:05]} 7. Re1 {[%emt 0:00:44]} O-O {[%emt 0:01:15]} 8. a5 {[%emt 0:00:59]} a6 {[%emt 0:01:42]} 9. Bf1 {[%emt 0:00:11]} b5 {[%emt 0:02:08]} 10. axb6 {[%emt 0:01:07]} Qxb6 {[%emt 0:02:27]} 11. d3 {[%emt 0:02:39]} Bb7 {[%emt 0:02:26]} 12. Nd2 {[%emt 0:04:54]} Ne5 {[%emt 0:05:56]} 13. b3 {[%emt 0:02:51]} Nfg4 {[%emt 0:11:12]} 14. Na4 {[%emt 0:15:16]} Qa7 {[%emt 0:02:36]} 15. c4 {[%emt 0:05:23]} f5 {[%emt 0:03:03]} 16. h3 {[%emt 0:07:51]} Nh6 {[%emt 0:07:04]} 17. Bb2 {[%emt 0:01:36]} fxe4 {[%emt 0:00:54]} 18. dxe4 {[%emt 0:02:20]} Bc6 {[%emt 0:01:38]} 19. g3 {[%emt 0:04:28]} g5 {[%emt 0:06:58]} 20. Qh5 {[%emt 0:07:02]} Nhf7 {[%emt 0:03:44]} 21. Qe2 {[%emt 0:09:34]} Rab8 {[%emt 0:03:18]} 22. Nc3 {[%emt 0:01:38]} Nd8 {[%emt 0:01:41]} 23. Bg2 {[%emt 0:02:21]} Ne6 {[%emt 0:02:02]} 24. Nd5 {[%emt 0:05:20]} Nd4 {[%emt 0:01:07]} 25. Bxd4 {[%emt 0:02:13]} cxd4 {[%emt 0:00:02]} 26. Ra2 {[%emt 0:14:00]} e6 {[%emt 0:01:56]} 27. Rea1 {[%emt 0:00:18]} exd5 {[%emt 0:02:10]} 28. Rxa6 {[%emt 0:00:13]} d3 {[%emt 0:02:37]} 29. Qe1 {[%emt 0:01:29]} Qd4 {[%emt 0:03:02]} 30. exd5 {[%emt 0:00:39]} Bd7 {[%emt 0:01:40]} 31. Qe3 {[%emt 0:02:27]} Qxe3 {[%emt 0:01:54]} 32. fxe3 {[%emt 0:00:04]} g4 {[%emt 0:00:24]} 33. hxg4 {[%emt 0:01:30]} Nxg4 {[%emt 0:00:14]} 34. R1a2 {[%emt 0:02:12]} Be5 {[%emt 0:02:35]} 35. Bf1 {[%emt 0:01:03]} Bf5 {[%emt 0:04:20]} 36. e4 {[%emt 0:01:25]} Bc8 {[%emt 0:00:02]} 37. Ra7 {[%emt 0:00:34]} Bd4+ {[%emt 0:00:04]} 38. Kh1 {[%emt 0:00:33]} Bxa7 {[%emt 0:00:19]} 0-1

[Event "FIDE CB Open 2022"]
[Site "Ceske Budejovice"]
[Date "2022.07.08"]
[Round "8.12"]
[White "Sykora, Ondrej"]
[Black "Abdulla, Khayala"]
[Result "1-0"]
[ECO "D05"]
[WhiteElo "2099"]
[BlackElo "2207"]
[Annotator "RC"]
[PlyCount "115"]
[EventDate "2022.07.01"]
[EventType "swiss"]
[EventCountry "CZE"]
[SourceTitle "playchess.com"]
[Source "ChessBase"]
[SourceQuality "1"]
[TimeControl "40/5400+30:1800+30"]

1. d4 {[%emt 0:00:11]} Nf6 {[%emt 0:00:11]} 2. Nf3 {[%emt 0:00:08]} e6 {[%emt 0:00:26]} 3. e3 {[%emt 0:01:36]} d5 {[%emt 0:00:44]} 4. Nbd2 {[%emt 0:00:12]} c5 {[%emt 0:00:09]} 5. c3 {[%emt 0:02:50]} Nc6 {[%emt 0:00:09]} 6. Be2 {[%emt 0:00:17]} Bd6 {[%emt 0:01:13]} 7. O-O {[%emt 0:00:07]} O-O {[%emt 0:00:36]} 8. dxc5 {[%emt 0:00:11]} Bxc5 {[%emt 0:00:06]} 9. b4 {[%emt 0:00:04]} Bd6 {[%emt 0:15:47]} 10. a3 {[%emt 0:00:36]} e5 {[%emt 0:01:46]} 11. c4 {[%emt 0:00:09]} e4 {[%emt 0:01:29]} 12. Nd4 {[%emt 0:00:08]} Qe7 {[%emt 0:03:02]} 13. c5 {[%emt 0:00:54]} Bb8 {[%emt 0:12:55]} 14. Nxc6 {[%emt 0:06:23]} bxc6 {[%emt 0:00:09]} 15. Bb2 {[%emt 0:00:03]} Nd7 {[%emt 0:02:56]} 16. Re1 {[%emt 0:07:42]} Ne5 {[%emt 0:01:34]} 17. Nf1 {[%emt 0:00:58]} Qg5 {[%emt 0:07:11]} 18. a4 {[%emt 0:18:48]} Bc7 {[%emt 0:05:47]} 19. Bc3 {[%emt 0:06:18]} Re8 {[%emt 0:05:13]} 20. g3 {[%emt 0:08:58]} Bh3 {[%emt 0:08:27]} 21. Nd2 {[%emt 0:04:37]} Re6 {[%emt 0:00:45]} 22. Ra3 {[%emt 0:03:06]} Qf5 {[%emt 0:05:19]} 23. Bxe5 {[%emt 0:16:40]} Bxe5 {[%emt 0:02:47]} 24. f4 {[%emt 0:00:37]} exf3 {[%emt 0:04:00]} 25. Bxf3 {[%emt 0:00:26]} Rf6 {[%emt 0:04:11]} 26. e4 {[%emt 0:02:13]} Qg5 {[%emt 0:02:03]} 27. Nf1 {[%emt 0:00:24]} Bxf1 {[%emt 0:03:29]} 28. Kxf1 {[%emt 0:01:17]} h5 {[%emt 0:02:58]} 29. Kg2 {[%emt 0:05:08]} h4 {[%emt 0:01:57]} 30. exd5 {[%emt 0:00:40]} Bxg3 {[%emt 0:03:31]} 31. hxg3 {[%emt 0:00:09]} Qxg3+ {[%emt 0:00:03]} 32. Kh1 {[%emt 0:01:46]} Qh3+ {[%emt 0:01:19]} 33. Kg1 {[%emt 0:00:02]} Rg6+ {[%emt 0:01:23]} 34. Kf2 {[%emt 0:00:21]} Qg3+ {[%emt 0:01:44]} 35. Ke3 {[%emt 0:03:20]} Re8+ {[%emt 0:00:25]} 36. Kd2 {[%emt 0:00:07]} Qf4+ {[%emt 0:01:10]} 37. Kc2 {[%emt 0:02:38]} Qc4+ {[%emt 0:01:05]} 38. Rc3 {[%emt 0:01:01]} Qa2+ {[%emt 0:00:21]} 39. Kd3 {[%emt 0:04:45]} Rd8 {[%emt 0:00:53]} 40. d6 {[%emt 0:03:45]} Rg3 {[%emt 0:00:26]} 41. Re3 {[%emt 0:30:34]} Qb2 {[%emt 0:10:33]} 42. Kc4 {[%emt 0:00:00]} a5 {[%emt 0:01:52]} 43. Rb3 {[%emt 0:00:00]} Qf6 {[%emt 0:04:22]} 44. Qd4 {[%emt 0:00:00]} Qg5 {[%emt 0:09:01]} 45. Qe5 {[%emt 0:00:00]} Qg6 {[%emt 0:03:02]} 46. Qe4 {[%emt 0:00:00]} Qg5 {[%emt 0:01:59]} 47. Qxc6 {[%emt 0:00:00]} Qf4+ {[%emt 0:00:46]} 48. Kb5 {[%emt 0:00:00]} g6 {[%emt 0:02:22]} 49. Kxa5 {[%emt 0:00:35]} h3 {[%emt 0:00:24]} 50. Qe4 {[%emt 0:01:44]} Qh6 {[%emt 0:00:48]} 51. Qe7 {[%emt 0:00:44]} Rb8 {[%emt 0:00:38]} 52. d7 {[%emt 0:00:19]} h2 {[%emt 0:00:28]} 53. d8=Q+ {[%emt 0:00:13]} Rxd8 {[%emt 0:00:01]} 54. Qxd8+ {[%emt 0:00:12]} Kh7 {[%emt 0:00:07]} 55. Re8 {[%emt 0:01:32]} Qf4 {[%emt 0:01:20]} 56. Rh8+ {[%emt 0:00:13]} Kg7 {[%emt 0:00:02]} 57. Qf8+ {[%emt 0:00:29]} Kf6 {[%emt 0:00:30]} 58. Qd6+ {[%emt 0:00:09]} 1-0

[Event "FIDE CB Open 2022"]
[Site "Ceske Budejovice"]
[Date "2022.07.08"]
[Round "8.13"]
[White "Zilavy, Jan"]
[Black "Mai, Alexander Oliver"]
[Result "1-0"]
[ECO "B57"]
[WhiteElo "2090"]
[BlackElo "2159"]
[Annotator "RC"]
[PlyCount "141"]
[EventDate "2022.07.01"]
[EventType "swiss"]
[EventCountry "CZE"]
[SourceTitle "playchess.com"]
[Source "ChessBase"]
[SourceQuality "1"]
[TimeControl "40/5400+30:1800+30"]

1. e4 {[%emt 0:00:06]} c5 {[%emt 0:00:08]} 2. Nf3 {[%emt 0:00:09]} d6 {[%emt 0:00:05]} 3. d4 {[%emt 0:00:08]} cxd4 {[%emt 0:00:07]} 4. Nxd4 {[%emt 0:00:05]} Nf6 {[%emt 0:00:07]} 5. Nc3 {[%emt 0:00:07]} Nc6 {[%emt 0:00:07]} 6. Bc4 {[%emt 0:00:29]} Qb6 {[%emt 0:00:15]} 7. Nxc6 {[%emt 0:04:21]} bxc6 {[%emt 0:00:15]} 8. O-O {[%emt 0:01:34]} g6 {[%emt 0:05:14]} 9. Qf3 {[%emt 0:09:18]} Bg7 {[%emt 0:01:34]} 10. Be3 {[%emt 0:12:36]} Qb7 {[%emt 0:04:52]} 11. h3 {[%emt 0:02:41]} O-O {[%emt 0:00:53]} 12. Bb3 {[%emt 0:01:04]} Bd7 {[%emt 0:04:27]} 13. Rfe1 {[%emt 0:04:44]} Ne8 {[%emt 0:02:33]} 14. Bg5 {[%emt 0:03:18]} Be6 {[%emt 0:01:35]} 15. Qe3 {[%emt 0:06:29]} Qd7 {[%emt 0:03:19]} 16. Rad1 {[%emt 0:01:56]} Nc7 {[%emt 0:00:48]} 17. Bh6 {[%emt 0:03:06]} Rfd8 {[%emt 0:06:22]} 18. Bxg7 {[%emt 0:00:12]} Kxg7 {[%emt 0:00:03]} 19. e5 {[%emt 0:02:17]} Bxb3 {[%emt 0:00:51]} 20. axb3 {[%emt 0:01:08]} d5 {[%emt 0:00:37]} 21. Rd4 {[%emt 0:04:52]} h5 {[%emt 0:04:03]} 22. Qd2 {[%emt 0:09:19]} Ne6 {[%emt 0:04:50]} 23. Rh4 {[%emt 0:00:32]} Rh8 {[%emt 0:00:42]} 24. Ra1 {[%emt 0:03:23]} f6 {[%emt 0:04:11]} 25. Qe2 {[%emt 0:02:24]} f5 {[%emt 0:01:30]} 26. Rha4 {[%emt 0:06:18]} d4 {[%emt 0:01:36]} 27. Qd2 {[%emt 0:04:53]} Rhd8 {[%emt 0:03:57]} 28. Ne2 {[%emt 0:00:11]} c5 {[%emt 0:04:00]} 29. Nf4 {[%emt 0:01:23]} Nf8 {[%emt 0:00:32]} 30. Ra6 {[%emt 0:00:44]} e6 {[%emt 0:01:13]} 31. Qa5 {[%emt 0:01:52]} Rdc8 {[%emt 0:00:04]} 32. Qa4 {[%emt 0:03:33]} Qe7 {[%emt 0:00:44]} 33. Qc4 {[%emt 0:02:00]} Kf7 {[%emt 0:00:21]} 34. R1a5 {[%emt 0:00:31]} Rc7 {[%emt 0:00:21]} 35. Rd6 {[%emt 0:00:48]} Re8 {[%emt 0:00:26]} 36. Raa6 {[%emt 0:00:22]} h4 {[%emt 0:00:19]} 37. Kh2 {[%emt 0:02:37]} g5 {[%emt 0:00:18]} 38. Nd3 {[%emt 0:00:27]} g4 {[%emt 0:01:32]} 39. Nf4 {[%emt 0:03:20]} Qg5 {[%emt 0:02:26]} 40. g3 {[%emt 0:01:13]} Rce7 {[%emt 0:02:44]} 41. Qxc5 {[%emt 0:32:47]} gxh3 {[%emt 0:31:45]} 42. Qxd4 {[%emt 0:01:11]} hxg3+ {[%emt 0:02:38]} 43. fxg3 {[%emt 0:00:07]} Kg8 {[%emt 0:00:51]} 44. Rxa7 {[%emt 0:00:00]} Rxa7 {[%emt 0:00:00]} 45. Qxa7 {[%emt 0:00:00]} Qg4 {[%emt 0:00:00]} 46. Qe3 {[%emt 0:00:00]} Re7 {[%emt 0:00:00]} 47. Qe2 {[%emt 0:00:00]} Qg7 {[%emt 0:00:00]} 48. Nh5 {[%emt 0:00:00]} Qg5 {[%emt 0:00:00]} 49. Rd8 {[%emt 0:00:00]} Kf7 {[%emt 0:00:00]} 50. Nf4 {[%emt 0:00:00]} Qg4 {[%emt 0:00:00]} 51. Qxg4 {[%emt 0:00:00]} fxg4 {[%emt 0:00:00]} 52. Rxf8+ {[%emt 0:00:00]} Kxf8 {[%emt 0:00:00]} 53. Ng6+ {[%emt 0:00:00]} Ke8 {[%emt 0:00:00]} 54. Nxe7 {[%emt 0:00:00]} Kxe7 {[%emt 0:00:00]} 55. b4 {[%emt 0:00:00]} Kd7 {[%emt 0:00:00]} 56. b5 {[%emt 0:00:00]} Kc7 {[%emt 0:00:00]} 57. c4 {[%emt 0:00:00]} Kb6 {[%emt 0:00:00]} 58. b4 {[%emt 0:00:00]} Kc7 {[%emt 0:00:00]} 59. c5 {[%emt 0:00:00]} Kb7 {[%emt 0:00:00]} 60. b6 {[%emt 0:00:00]} Ka6 {[%emt 0:00:00]} 61. b5+ {[%emt 0:00:00]} Kb7 {[%emt 0:00:00]} 62. Kg1 {[%emt 0:00:00]} Kc8 {[%emt 0:00:00]} 63. c6 {[%emt 0:00:00]} Kb8 {[%emt 0:00:00]} 64. b7 {[%emt 0:00:00]} Kc7 {[%emt 0:00:00]} 65. b6+ {[%emt 0:00:00]} Kb8 {[%emt 0:00:00]} 66. Kh1 {[%emt 0:00:00]} h2 {[%emt 0:00:00]} 67. c7+ {[%emt 0:00:00]} Kxb7 {[%emt 0:00:00]} 68. Kxh2 {[%emt 0:00:00]} Kc8 {[%emt 0:00:00]} 69. Kg2 {[%emt 0:00:00]} Kd7 {[%emt 0:00:00]} 70. Kf2 {[%emt 0:00:00]} Kc8 {[%emt 0:00:00]} 71. Ke3 {[%emt 0:00:00]} 1-0

[Event "FIDE CB Open 2022"]
[Site "Ceske Budejovice"]
[Date "2022.07.08"]
[Round "8.14"]
[White "Puncochar, Jiri"]
[Black "Vybiral, Zdenek"]
[Result "0-1"]
[ECO "B42"]
[WhiteElo "2020"]
[BlackElo "2143"]
[Annotator "NA"]
[PlyCount "76"]
[EventDate "2022.07.01"]
[EventType "swiss"]
[EventCountry "CZE"]
[SourceTitle "playchess.com"]
[Source "ChessBase"]
[SourceQuality "1"]
[TimeControl "40/5400+30:1800+30"]

1. e4 {[%emt 0:00:10]} c5 {[%emt 0:00:12]} 2. Nf3 {[%emt 0:00:05]} e6 {[%emt 0:00:05]} 3. d4 {[%emt 0:00:18]} cxd4 {[%emt 0:00:05]} 4. Nxd4 {[%emt 0:00:01]} a6 {[%emt 0:00:08]} 5. Bd3 {[%emt 0:03:33]} Bc5 {[%emt 0:00:14]} 6. Nb3 {[%emt 0:00:51]} Ba7 {[%emt 0:00:06]} 7. O-O {[%emt 0:00:44]} d6 {[%emt 0:02:35]} 8. Qg4 {[%emt 0:03:59]} Kf8 {[%emt 0:00:07]} 9. Bg5 {[%emt 0:02:57]} Nf6 {[%emt 0:00:34]} 10. Qg3 {[%emt 0:02:39]} Qc7 {[%emt 0:00:29]} 11. Bf4 {[%emt 0:02:41]} e5 {[%emt 0:00:24]} 12. Be3 {[%emt 0:00:12]} Bxe3 {[%emt 0:02:16]} 13. Qxe3 {[%emt 0:00:13]} Nbd7 {[%emt 0:00:45]} 14. c3 {[%emt 0:04:16]} a5 {[%emt 0:05:38]} 15. Na3 {[%emt 0:01:31]} a4 {[%emt 0:00:26]} 16. Nd2 {[%emt 0:02:06]} Qc5 {[%emt 0:03:02]} 17. Rfe1 {[%emt 0:06:28]} Qxe3 {[%emt 0:02:23]} 18. Rxe3 {[%emt 0:00:08]} Ke7 {[%emt 0:01:47]} 19. Bc4 {[%emt 0:04:21]} Nb6 {[%emt 0:02:31]} 20. Rd1 {[%emt 0:03:54]} Rd8 {[%emt 0:00:49]} 21. Be2 {[%emt 0:04:29]} Be6 {[%emt 0:01:20]} 22. Ndc4 {[%emt 0:01:17]} Ra6 {[%emt 0:14:14]} 23. f3 {[%emt 0:06:11]} Nxc4 {[%emt 0:10:15]} 24. Bxc4 {[%emt 0:00:40]} Rb6 {[%emt 0:07:36]} 25. Rd2 {[%emt 0:07:01]} Rc8 {[%emt 0:14:35]} 26. Bxe6 {[%emt 0:07:05]} Kxe6 {[%emt 0:00:06]} 27. Red3 {[%emt 0:05:10]} Nd7 {[%emt 0:01:41]} 28. Rd5 {[%emt 0:03:27]} g6 {[%emt 0:03:12]} 29. Kf2 {[%emt 0:07:52]} f5 {[%emt 0:00:27]} 30. g3 {[%emt 0:00:17]} fxe4 {[%emt 0:00:19]} 31. Nb5 {[%emt 0:02:12]} Rcc6 {[%emt 0:01:30]} 32. Na7 {[%emt 0:02:20]} Rc5 {[%emt 0:00:41]} 33. Rxc5 {[%emt 0:01:39]} Nxc5 {[%emt 0:00:07]} 34. Ke3 {[%emt 0:01:12]} exf3 {[%emt 0:02:37]} 35. Kxf3 {[%emt 0:00:10]} d5 {[%emt 0:00:23]} 36. Ke3 {[%emt 0:00:37]} Ne4 {[%emt 0:00:43]} 37. Rc2 {[%emt 0:00:23]} Nd6 {[%emt 0:00:09]} 38. Kd3 {[%emt 0:01:00]} Ra6 {[%emt 0:00:35]} 0-1

[Event "FIDE CB Open 2022"]
[Site "Ceske Budejovice"]
[Date "2022.07.08"]
[Round "8.15"]
[White "Zauner, Christoph"]
[Black "Panjer, Sidney"]
[Result "0-1"]
[ECO "C78"]
[WhiteElo "1963"]
[BlackElo "2140"]
[Annotator "NA"]
[PlyCount "56"]
[EventDate "2022.07.01"]
[EventType "swiss"]
[EventCountry "CZE"]
[SourceTitle "playchess.com"]
[Source "ChessBase"]
[SourceQuality "1"]
[TimeControl "40/5400+30:1800+30"]

1. e4 {[%emt 0:00:09]} e5 {[%emt 0:00:23]} 2. Nf3 {[%emt 0:00:25]} Nc6 {[%emt 0:00:10]} 3. Bb5 {[%emt 0:00:35]} a6 {[%emt 0:00:20]} 4. Ba4 {[%emt 0:00:07]} Nf6 {[%emt 0:00:21]} 5. O-O {[%emt 0:00:16]} b5 {[%emt 0:00:51]} 6. Bb3 {[%emt 0:00:08]} Bc5 {[%emt 0:00:08]} 7. c3 {[%emt 0:10:34]} d6 {[%emt 0:00:58]} 8. d3 {[%emt 0:16:54]} h6 {[%emt 0:01:16]} 9. a4 {[%emt 0:01:04]} Rb8 {[%emt 0:00:58]} 10. axb5 {[%emt 0:02:03]} axb5 {[%emt 0:00:18]} 11. Bc2 {[%emt 0:05:07]} O-O {[%emt 0:01:10]} 12. b4 {[%emt 0:03:31]} Bb6 {[%emt 0:00:43]} 13. Bb3 {[%emt 0:06:14]} Ne7 {[%emt 0:02:23]} 14. Be3 {[%emt 0:07:14]} Ng6 {[%emt 0:04:08]} 15. Nbd2 {[%emt 0:02:01]} c5 {[%emt 0:09:46]} 16. h3 {[%emt 0:08:11]} cxb4 {[%emt 0:03:42]} 17. Bxb6 {[%emt 0:00:17]} Rxb6 {[%emt 0:01:18]} 18. cxb4 {[%emt 0:01:30]} Nf4 {[%emt 0:06:21]} 19. Nb1 {[%emt 0:05:16]} N6h5 {[%emt 0:13:01]} 20. Kh2 {[%emt 0:03:56]} d5 {[%emt 0:31:00]} 21. Rg1 {[%emt 0:02:40]} dxe4 {[%emt 0:07:33]} 22. Nxe5 {[%emt 0:02:03]} Qd4 {[%emt 0:02:24]} 23. Nxf7 {[%emt 0:01:20]} Qxa1 {[%emt 0:01:34]} 24. Qc2 {[%emt 0:01:34]} Be6 {[%emt 0:04:45]} 25. Nc3 {[%emt 0:00:46]} exd3 {[%emt 0:00:37]} 26. Qd2 {[%emt 0:02:25]} Qa7 {[%emt 0:00:18]} 27. Bxe6 {[%emt 0:01:41]} Rxe6 {[%emt 0:00:09]} 28. Nxb5 {[%emt 0:00:05]} Qxf7 {[%emt 0:00:11]} 0-1